bitfinex-derivatives/quotes_SOLF0:USTF0_20241208
["timestamp","ask_amount","ask_price","bid_price","bid_amount"]
[1733646452849,10.33579846,236.02,235.9,1.92]
[1733646453253,10.33579846,235.99,235.91,1.92]
[1733646453546,10.33579846,235.99,235.86,10.33579846]
[1733646453749,12.45309846,235.99,235.9,2.1181]
[1733646453946,10.33579846,235.99,235.88,1.92]
[1733646454352,10.33579846,235.99,235.91,2.118]
[1733646454654,10.33579846,235.99,235.84,4.1945]
[1733646454655,10.33579846,235.96,235.84,4.1945]
[1733646454859,10.33579846,235.93,235.85,1.92]
[1733646455149,10.33579846,235.93,235.86,2.1184]
[1733646455358,10.33579846,235.9,235.81,1.92]
[1733646455549,10.33579846,235.9,235.82,2.1187]
[1733646455945,12.25579846,235.9,235.82,2.1187]
[1733646456350,2.1182,235.89,235.8,2.43657]
[1733646456551,10.33579846,235.87,235.8,2.43657]
[1733646457851,10.33579846,235.93,235.8,0.31757]
[1733646458050,1.92,235.91,235.8,0.31757]
[1733646458444,1.92,235.91,235.87,2.1183]
[1733646458650,1.92,235.91,235.8,0.31757]
[1733646459156,10.33579846,235.96,235.81,10.33579846]
[1733646459661,14.39539846,235.99,235.84,10.33579846]
[1733646459853,1.92,235.97,235.85,1.92]
[1733646460351,14.39539846,235.99,235.87,10.33579846]
[1733646461758,14.39539846,235.99,235.92,2.1179]
[1733646462454,13.03409846,235.99,235.93,2.1178]
[1733646462959,2.1169,236.04,235.96,2.1175]
[1733646463153,12.25579846,236.04,235.9,12.25579846]
[1733646463752,12.25579846,236.04,235.94,2.1177]
[1733646463950,12.25579846,236.04,235.9,12.25579846]
[1733646464154,10.33579846,236.04,235.9,12.25579846]
[1733646464348,12.25579846,236.07,235.93,10.33579846]
[1733646464959,12.25579846,236.07,236.01,2.1171]
[1733646465161,1.92,236.07,236.01,2.1171]
[1733646465555,1.92,236.07,235.97,1.92]
[1733646465760,1.92,236.07,236.02,2.117]
[1733646465964,10.33579846,236.05,235.97,1.92]
[1733646466163,10.33579846,236.05,235.99,2.1173]
[1733646466860,10.33579846,236.05,235.92,2.8075]
[1733646467065,10.33579846,236.05,235.97,2.1175]
[1733646468665,12.45259846,236.05,235.97,2.1175]
[1733646470564,2.1169,236.04,235.96,2.1175]
[1733646470765,10.33579846,236.05,235.93,1.92]
[1733646472963,4.0366,236.07,235.98,2.1174]
[1733646473263,2.7547,236.09,235.97,10.33579846]
[1733646473470,2.7547,236.09,236.04,2.1168]
[1733646473969,2.7547,236.09,236.02,2.117]
[1733646474963,12.27579846,236.11,235.98,1.94]
[1733646475162,1.94,236.15,236.03,10.33579846]
[1733646475370,1.94,236.15,236.04,1.94]
[1733646475665,1.94,236.15,236.09,2.1164]
[1733646476059,1.94,236.15,236.04,1.94]
[1733646476764,10.33579846,236.13,236.02,2.117]
[1733646476965,10.33579846,236.1,236.01,1.94]
[1733646477967,10.33579846,236.13,236.01,1.94]
[1733646479066,10.33579846,236.13,236.06,2.1166]
[1733646479369,4.061,236.14,236.01,1.94]
[1733646479564,4.061,236.14,236.03,10.33579846]
[1733646479565,2.7238,236.14,236.03,10.33579846]
[1733646480462,2.7238,236.14,236.07,2.1165]
[1733646480675,2.7238,236.14,236.01,3.3432]
[1733646480861,13.05959846,236.14,236.01,3.3432]
[1733646481261,15.17559846,236.14,236.07,2.1166]
[1733646481767,13.05959846,236.14,236.06,1.94]
[1733646482468,13.05959846,236.14,236.08,2.1164]
[1733646482661,2.7238,236.14,236.06,1.94]
[1733646483668,1.3475,236.14,236.06,1.94]
[1733646483865,10.33579846,236.17,236.06,1.94]
[1733646484470,10.33579846,236.17,236.12,2.1161]
[1733646484869,10.33579846,236.17,236.06,1.94]
[1733646485468,10.33579846,236.17,236.11,2.1162]
[1733646485979,2.1158,236.16,236.08,2.1165]
[1733646486272,10.33579846,236.17,236.07,1.94]
[1733646486475,2.1159,236.15,236.08,2.1165]
[1733646486669,10.33579846,236.17,236.08,2.1165]
[1733646487071,2.1158,236.16,236.09,2.1164]
[1733646487565,4.7871,236.24,236.16,2.1157]
[1733646487764,4.7871,236.24,236.13,1.94]
[1733646488381,12.45099846,236.23,236.13,1.94]
[1733646488670,1.94,236.22,236.13,1.94]
[1733646489069,4.0553,236.22,236.14,2.1159]
[1733646489369,4.0553,236.22,236.03,76.78354415]
[1733646489370,10.33579846,236.2,236.1,1.94]
[1733646489573,10.33579846,236.2,236.08,1.94]
[1733646490670,2.1155,236.19,236.11,2.1162]
[1733646491170,2.1155,236.19,236.08,1.94]
[1733646492171,12.45119846,236.2,236.08,1.94]
[1733646493576,12.45119846,236.2,236.12,2.1161]
[1733646493773,10.33579846,236.2,236.12,2.1161]
[1733646494082,2.1155,236.19,236.12,2.1161]
[1733646494768,2.1155,236.19,236.13,2.116]
[1733646495968,12.45119846,236.2,236.14,2.116]
[1733646496175,12.27579846,236.2,236.08,1.94]
[1733646496672,12.27579846,236.2,236.14,2.1159]
[1733646498474,12.27579846,236.2,236.06,10.33579846]
[1733646498475,2.1156,236.18,236.12,2.1161]
[1733646498673,12.27579846,236.2,236.03,76.78354415]
[1733646498674,10.33579846,236.17,236.03,76.78354415]
[1733646498977,10.33579846,236.17,236.07,1.94]
[1733646499570,10.33579846,236.17,236.12,2.1161]
[1733646500076,10.33579846,236.17,236.07,1.94]
[1733646500276,10.33579846,236.17,236.1,2.1162]
[1733646500576,10.33579846,236.17,236.04,1.9]
[1733646500777,10.33579846,236.17,236.08,2.1165]
[1733646501375,2.116,236.14,236.06,2.1166]
[1733646501574,15.362,236.24,236.03,76.78354415]
[1733646501575,10.33579846,236.11,236.03,76.78354415]
[1733646501877,10.33579846,236.11,236.02,2.117]
[1733646501878,2.1164,236.1,236.02,2.117]
[1733646502071,10.33579846,236.08,235.97,1.9]
[1733646502473,10.33579846,236.08,236.0,2.1172]
[1733646503076,10.33579846,236.08,235.97,1.9]
[1733646503375,10.33579846,236.08,236.01,2.1171]
[1733646504479,10.33579846,236.08,235.97,1.9]
[1733646504480,10.33579846,236.08,236.02,2.117]
[1733646504773,1.9,236.12,235.99,10.33579846]
[1733646504976,1.3581,236.14,236.09,2.1164]
[1733646505276,12.23579846,236.17,236.04,1.9]
[1733646505571,1.9,236.17,236.11,2.1162]
[1733646505778,1.9,236.17,236.09,1.9]
[1733646506577,1.9,236.17,236.12,2.1161]
[1733646506778,1.9,236.17,236.09,1.9]
[1733646506779,12.23579846,236.17,236.09,1.9]
[1733646506975,12.23579846,236.17,236.05,10.33579846]
[1733646506976,12.23579846,236.17,236.05,1.9]
[1733646507278,10.33579846,236.14,236.07,2.1165]
[1733646507677,12.45179846,236.14,236.05,1.9]
[1733646507975,10.33579846,236.14,236.05,4.0167]
[1733646508375,10.33579846,236.11,236.03,2.1169]
[1733646508879,10.33579846,236.11,236.01,1.9]
[1733646509173,10.33579846,236.08,236.01,1.9]
[1733646509374,10.33579846,236.08,235.96,4.0273]
[1733646509579,2.1166,236.07,235.99,2.1173]
[1733646509876,1.9,236.07,235.96,5.9273]
[1733646511180,10.33579846,236.05,235.98,2.1173]
[1733646511683,1.9,236.07,236.0,2.1172]
[1733646511882,1.9,236.07,235.96,1.9]
[1733646512579,1.9,236.07,236.01,2.1171]
[1733646513575,1.9,236.07,235.96,1.9]
[1733646513576,10.33579846,236.08,236.02,2.117]
[1733646513885,10.33579846,236.08,235.96,1.9]
[1733646513886,1.9,236.1,235.97,10.33579846]
[1733646515682,1.9,236.1,236.06,2.1167]
[1733646516388,1.9,236.13,236.07,2.1166]
[1733646516881,10.33579846,236.14,236.07,2.1166]
[1733646517086,12.23579846,236.14,236.07,2.1166]
[1733646518691,14.35179846,236.14,236.07,2.1166]
[1733646520189,12.23579846,236.14,236.08,2.1165]
[1733646520392,12.23579846,236.14,236.02,1.9]
[1733646520594,1.9,236.14,236.03,10.33579846]
[1733646520889,1.9,236.14,236.1,2.1162]
[1733646521285,1.9,236.16,236.03,10.33579846]
[1733646523193,10.33579846,236.14,236.02,4.5887]
[1733646524592,12.45179846,236.14,236.07,2.1166]
[1733646524797,10.33579846,236.14,236.02,4.5887]
[1733646527001,10.33579846,236.14,236.09,2.1164]
[1733646527494,10.33579846,236.14,236.07,2.1165]
[1733646529194,10.33579846,236.14,236.08,2.1165]
[1733646530498,10.33579846,236.14,236.02,4.5887]
[1733646531000,10.33579846,236.14,236.05,2.1167]
[1733646531300,10.33579846,236.14,236.02,4.5887]
[1733646531689,1.9,236.16,236.09,2.1163]
[1733646531890,10.33579846,236.2,236.07,1.9]
[1733646532098,1.9,236.19,236.07,1.9]
[1733646532293,1.9,236.19,236.13,2.116]
[1733646533201,1.9,236.19,236.15,2.1159]
[1733646533803,1.9,236.19,236.14,2.1159]
[1733646534792,1.9,236.19,236.15,2.1159]
[1733646534994,10.33579846,236.2,236.07,1.9]
[1733646535192,4.688,236.22,236.07,1.9]
[1733646535193,10.33579846,236.14,236.07,1.9]
[1733646535502,10.33579846,236.14,236.09,2.1164]
[1733646535704,10.33579846,236.14,236.07,1.9]
[1733646536100,2.1161,236.13,236.05,2.1167]
[1733646536406,2.1161,236.13,236.03,1.9]
[1733646536407,4.0161,236.13,236.03,1.9]
[1733646536605,4.0161,236.13,236.02,2.6887]
[1733646536908,4.0161,236.13,236.05,2.1168]
[1733646537107,2.5727,236.22,236.05,2.1168]
[1733646537408,10.33579846,236.13,236.05,2.1168]
[1733646537605,12.23579846,236.13,236.05,2.1168]
[1733646538205,14.35189846,236.13,236.05,2.1168]
[1733646538501,1.9,236.15,236.02,4.5887]
[1733646538710,12.23579846,236.16,236.02,4.5887]
[1733646539610,10.33579846,236.13,236.05,2.1167]
[1733646539817,10.33579846,236.13,236.02,4.5887]
[1733646540211,10.33579846,236.13,236.03,2.1169]
[1733646540212,2.1162,236.11,236.03,2.1169]
[1733646541409,12.23579846,236.1,235.93,76.44691068]
[1733646541616,12.23579846,236.1,235.94,18.7549376]
[1733646541814,12.23579846,236.1,235.94,16.24519846]
[1733646542315,2.1166,236.07,235.94,16.24519846]
[1733646543917,2.1165,236.09,235.94,16.24519846]
[1733646544720,2.1165,236.09,235.97,10.33579846]
[1733646548222,2.1165,236.09,235.94,16.24519846]
[1733646549625,12.23579846,236.1,235.94,16.24519846]
[1733646549926,14.35209846,236.1,235.94,16.24519846]
[1733646550513,12.23579846,236.1,235.97,10.33579846]
[1733646550718,1.9,236.12,236.0,10.33579846]
[1733646550919,1.9,236.12,236.01,1.9]
[1733646553020,10.33579846,236.13,236.01,1.9]
[1733646553221,1.9,236.15,236.01,1.9]
[1733646556727,10.33579846,236.13,236.01,1.9]
[1733646557118,10.33579846,236.1,236.01,1.9]
[1733646557318,10.33579846,236.1,235.94,18.58069846]
[1733646557319,12.23579846,236.1,235.94,18.58069846]
[1733646557520,12.23579846,236.1,235.95,4.41130243]
[1733646557723,12.23579846,236.1,235.95,1.9]
[1733646558425,10.33579846,236.07,235.95,1.9]
[1733646558833,12.23579846,236.1,235.95,1.9]
[1733646559124,1.9,236.1,235.97,10.33579846]
[1733646559325,1.9,236.1,236.0,10.33579846]
[1733646559530,13.02099846,236.13,236.01,1.9]
[1733646563629,12.69,236.27,236.01,1.9]
[1733646563824,10.33579846,236.17,236.03,10.33579846]
[1733646564022,12.23579846,236.17,236.03,10.33579846]
[1733646564530,12.23579846,236.17,236.11,2.1162]
[1733646565725,12.23579846,236.17,236.06,1.9]
[1733646565930,12.23579846,236.17,236.12,2.1161]
[1733646566131,12.23579846,236.17,236.06,1.9]
[1733646566328,12.23579846,236.17,236.13,2.116]
[1733646566731,10.33579846,236.17,236.13,2.116]
[1733646567435,10.33579846,236.17,236.06,1.9]
[1733646567731,10.33579846,236.17,236.14,2.1159]
[1733646568431,10.33579846,236.17,236.15,2.1158]
[1733646569722,10.33579846,236.17,236.09,2.1164]
[1733646569929,1.9,236.22,236.09,10.33579846]
[1733646570135,7.95969408,236.21,236.09,10.33579846]
[1733646570330,7.95969408,236.21,236.18,2.1155]
[1733646570533,6.61079787,236.19,236.18,2.1155]
[1733646570728,6.61079787,236.19,236.12,1.9]
[1733646570932,6.61079787,236.14,236.13,2.1161]
[1733646571125,6.61079787,236.14,236.08,1.9]
[1733646571530,2.1156,236.18,236.09,2.1163]
[1733646571730,1.9,236.22,236.08,8.51079787]
[1733646571731,6.61079787,236.16,236.08,8.51079787]
[1733646572136,6.61079787,236.16,236.13,2.116]
[1733646572531,10.33319919,236.19,236.13,2.116]
[1733646573231,10.33319919,236.19,236.15,2.1158]
[1733646573440,10.33319919,236.19,236.08,1.9]
[1733646574835,10.33319919,236.19,236.13,2.116]
[1733646575736,10.33319919,236.19,236.14,2.1159]
[1733646576335,14.34849919,236.22,236.15,2.1158]
[1733646576731,12.23319919,236.22,236.08,1.9]
[1733646576936,10.33319919,236.22,236.08,1.9]
[1733646577537,10.33319919,236.22,236.16,2.1157]
[1733646578040,10.33319919,236.22,236.17,2.1157]
[1733646585643,10.33319919,236.22,236.14,1.9]
[1733646585838,0.15376,236.34,236.14,1.9]
[1733646585839,12.23319919,236.28,236.14,1.9]
[1733646586340,12.44799919,236.28,236.18,2.1156]
[1733646586542,12.44799919,236.28,236.14,1.9]
[1733646586840,12.44799919,236.28,236.22,2.1152]
[1733646587841,1.9,236.3,236.19,1.9]
[1733646588045,14.25289919,236.32,236.2,1.9]
[1733646588340,14.25289919,236.32,236.26,2.1149]
[1733646588540,3.9197,236.32,236.2,1.9]
[1733646588741,2.593,236.32,236.22,10.33319919]
[1733646588940,1.9,236.33,236.27,2.1147]
[1733646589142,1.9,236.33,236.22,10.33319919]
[1733646589646,0.15376,236.34,236.22,10.33319919]
[1733646591041,2.26796,236.34,236.22,10.33319919]
[1733646592639,6.60385834,236.32,236.26,2.1149]
[1733646593147,6.60385834,236.32,236.25,8.50385834]
[1733646594042,6.60385834,236.28,236.16,1.3998]
[1733646594239,6.60385834,236.28,236.21,6.60385834]
[1733646594746,6.60385834,236.26,236.21,2.1153]
[1733646595351,1.9,236.31,236.19,2.1155]
[1733646595352,6.60385834,236.24,236.19,2.1155]
[1733646597745,6.60385834,236.29,236.21,6.60385834]
[1733646598148,6.60385834,236.29,236.22,2.1152]
[1733646598751,6.60385834,236.29,236.21,6.60385834]
[1733646599447,6.60385834,236.27,236.21,6.60385834]
[1733646599745,6.60385834,236.27,236.23,2.1151]
[1733646600351,6.60385834,236.25,236.2,2.1154]
[1733646600752,6.60385834,236.25,236.18,6.60385834]
[1733646600950,6.60385834,236.23,236.18,2.1156]
[1733646601252,6.60385834,236.23,236.17,1.9]
[1733646601451,6.60385834,236.23,236.19,2.1154]
[1733646601651,6.60385834,236.25,236.18,6.60385834]
[1733646601855,6.60385834,236.25,236.19,2.1155]
[1733646602150,6.60385834,236.21,236.14,57.79155871]
[1733646602349,6.60385834,236.21,236.13,2.116]
[1733646602554,1.9,236.26,236.12,8.50385834]
[1733646602555,6.60385834,236.19,236.12,8.50385834]
[1733646602747,6.60385834,236.19,236.11,1.9]
[1733646602947,6.60385834,236.19,236.11,6.60385834]
[1733646603349,6.60385834,236.17,236.02,4.0692]
[1733646603552,6.60385834,236.17,236.09,6.60385834]
[1733646603754,6.60385834,236.17,236.1,1.9]
[1733646604251,1.9,236.21,236.11,6.60385834]
[1733646604456,6.60385834,236.2,236.1,1.9]
[1733646604851,6.60385834,236.2,236.13,6.60385834]
[1733646605046,6.60385834,236.16,236.1,1.9]
[1733646605355,6.60385834,236.16,236.1,8.50385834]
[1733646606056,6.60385834,236.16,236.1,10.62015834]
[1733646606253,6.60385834,236.14,236.06,1.9]
[1733646606452,6.60385834,236.14,236.06,8.50385834]
[1733646606854,6.60385834,236.14,236.08,2.1165]
[1733646608954,6.60385834,236.14,236.06,8.50385834]
[1733646608955,6.60385834,236.14,236.09,2.1164]
[1733646610255,8.50385834,236.16,236.11,2.1162]
[1733646610456,6.60385834,236.18,236.1,6.60385834]
[1733646610658,6.60385834,236.18,236.12,6.60385834]
[1733646611460,4.0152,236.23,236.12,6.60385834]
[1733646611758,6.60385834,236.2,236.12,6.60385834]
[1733646612150,6.60385834,236.2,236.14,6.60385834]
[1733646612353,1.9,236.24,236.14,6.60385834]
[1733646612552,6.60385834,236.22,236.14,6.60385834]
[1733646613461,6.60385834,236.18,236.12,6.60385834]
[1733646613656,6.60385834,236.18,236.11,1.9]
[1733646614660,6.60385834,236.18,236.12,2.1161]
[1733646621064,2.1156,236.19,236.12,2.1161]
[1733646621265,6.60385834,236.18,236.12,2.1161]
[1733646622061,15.3514,236.3,236.02,61.28602887]
[1733646622062,6.60385834,236.14,236.07,8.50385834]
[1733646622264,6.60385834,236.1,236.02,61.28602887]
[1733646622460,6.60385834,236.1,236.03,1.9]
[1733646622658,6.60385834,236.08,236.03,1.9]
[1733646622863,6.60385834,236.08,236.02,57.21682887]
[1733646623470,6.60385834,236.08,236.02,59.33382887]
[1733646624268,6.60385834,236.08,236.02,57.21682887]
[1733646624471,6.60385834,236.08,236.03,2.1169]
[1733646624666,6.60385834,236.1,236.02,63.82068721]
[1733646624970,6.60385834,236.1,236.06,2.1167]
[1733646625166,6.60385834,236.1,236.04,6.60385834]
[1733646625675,1.9,236.13,236.04,6.60385834]
[1733646625971,1.9,236.13,236.02,57.21682887]
[1733646625972,8.50385834,236.13,236.06,6.60385834]
[1733646626173,6.60385834,236.15,236.09,2.1164]
[1733646626374,6.60385834,236.15,236.08,6.60385834]
[1733646626570,1.9,236.16,236.07,1.9]
[1733646626967,1.9,236.16,236.1,2.1162]
[1733646627269,1.9,236.16,236.07,1.9]
[1733646627664,1.9,236.16,236.11,2.1161]
[1733646627973,1.9,236.16,236.07,1.9]
[1733646627974,4.0145,236.19,236.07,1.9]
[1733646628175,2.6158,236.19,236.07,1.9]
[1733646629673,2.6158,236.19,236.12,2.1161]
[1733646630176,2.6158,236.19,236.07,1.9]
[1733646630177,12.94805633,236.19,236.07,1.9]
[1733646630471,10.33225633,236.16,236.06,1.9]
[1733646630672,10.33225633,236.16,236.04,1.3642]
[1733646630877,2.1161,236.12,236.05,1.9]
[1733646631070,10.33225633,236.13,236.05,1.9]
[1733646631575,2.1163,236.1,236.01,1.9]
[1733646632678,12.44855633,236.1,236.02,59.33382887]
[1733646633282,12.44855633,236.1,236.03,2.1169]
[1733646633482,10.33225633,236.13,236.02,57.21682887]
[1733646634077,1.9,236.14,236.02,57.21682887]
[1733646634281,1.9,236.14,236.02,58.60872887]
[1733646634481,1.9,236.14,236.08,2.1165]
[1733646634784,1.9,236.14,236.02,59.91962887]
[1733646634785,10.33225633,236.13,236.02,59.91962887]
[1733646634983,2.1161,236.12,236.04,2.1169]
[1733646635281,2.1161,236.12,236.02,57.21682887]
[1733646636684,2.1161,236.12,236.05,2.1168]
[1733646637076,12.44855633,236.1,236.01,1.9]
[1733646637681,1.9,236.11,236.05,2.1168]
[1733646638982,1.9,236.11,236.01,1.9]
[1733646639289,1.9,236.11,236.07,2.1166]
[1733646640583,1.9,236.11,236.08,2.1165]
[1733646640893,1.9,236.15,236.03,10.33225633]
[1733646641094,10.33225633,236.17,236.03,10.33225633]
[1733646641287,1.9,236.16,236.03,10.33225633]
[1733646641588,2.1159,236.15,236.09,2.1164]
[1733646643589,2.116,236.14,236.1,2.1163]
[1733646646690,10.33225633,236.14,236.01,1.9]
[1733646647192,2.1162,236.12,236.08,2.1164]
[1733646647389,10.33225633,236.14,236.01,1.9]
[1733646647890,2.1161,236.13,236.07,2.1165]
[1733646648194,2.1161,236.13,236.01,1.9]
[1733646648486,6.61565561,236.11,236.06,2.1166]
[1733646648792,6.61565561,236.11,236.04,6.61565561]
[1733646649586,6.61565561,236.11,236.07,2.1165]
[1733646650484,6.61565561,236.12,236.08,2.1165]
[1733646650686,6.61565561,236.14,236.08,6.61565561]
[1733646650988,8.73155561,236.16,236.11,2.1162]
[1733646651186,8.73155561,236.16,236.08,6.61565561]
[1733646651692,6.61565561,236.14,236.09,2.1164]
[1733646654389,6.61565561,236.16,236.08,6.61565561]
[1733646654594,6.61565561,236.16,236.1,6.61565561]
[1733646655195,6.61565561,236.16,236.11,2.1162]
[1733646655895,2.1154,236.2,236.13,2.116]
[1733646656086,6.61565561,236.18,236.13,2.116]
[1733646657094,2.1154,236.2,236.13,2.116]
[1733646657296,2.1154,236.2,236.14,6.61565561]
[1733646657596,6.61565561,236.2,236.14,6.61565561]
[1733646657794,6.61565561,236.2,236.14,8.73155561]
[1733646658592,6.61565561,236.2,236.14,2.1159]
[1733646658789,6.61565561,236.16,236.12,4.0161]
[1733646659192,2.1156,236.19,236.12,2.1161]
[1733646659398,6.61565561,236.17,236.12,2.1161]
[1733646660296,6.61565561,236.15,236.11,1.9]
[1733646660491,6.61565561,236.13,236.08,1.9]
[1733646660696,6.61565561,236.11,236.08,1.9]
[1733646661100,6.61565561,236.13,236.08,4.0165]
[1733646661495,2.1159,236.15,236.11,2.1162]
[1733646661496,6.61565561,236.15,236.11,2.1162]
[1733646661699,6.61565561,236.17,236.1,6.61565561]
[1733646662403,6.61565561,236.17,236.12,2.1161]
[1733646662899,6.61565561,236.17,236.1,6.61565561]
[1733646663109,6.61565561,236.13,236.08,1.9]
[1733646663804,6.61565561,236.09,236.02,6.61565561]
[1733646664003,6.61565561,236.09,236.02,8.51565561]
[1733646664210,6.61565561,236.07,236.02,1.9]
[1733646664901,6.61565561,236.07,236.01,1.9]
[1733646666707,2.1165,236.09,236.01,1.9]
[1733646667000,6.61565561,236.06,236.01,1.9]
[1733646667300,6.61565561,236.08,236.01,1.9]
[1733646667505,6.61565561,236.08,236.02,6.61565561]
[1733646670398,6.61565561,236.08,236.01,1.9]
[1733646670399,2.1161,236.13,236.04,6.61565561]
[1733646670597,1.9,236.14,236.04,6.61565561]
[1733646670803,6.61565561,236.12,236.04,6.61565561]
[1733646671199,6.61565561,236.12,236.06,6.61565561]
[1733646671700,6.61565561,236.14,236.08,6.61565561]
[1733646671902,6.61565561,236.14,236.08,8.51565561]
[1733646672098,2.6196,236.17,236.08,8.51565561]
[1733646672306,1.3486,236.18,236.1,6.61565561]
[1733646672509,1.9,236.21,236.12,6.61565561]
[1733646672704,1.2856,236.27,236.15,2.1159]
[1733646672705,6.61565561,236.19,236.15,2.1159]
[1733646673502,6.61565561,236.19,236.17,2.1157]
[1733646673703,6.61565561,236.21,236.17,2.1157]
[1733646675102,1.2856,236.27,236.21,2.1153]
[1733646675410,6.61565561,236.25,236.21,2.1153]
[1733646678609,6.61565561,236.25,236.18,8.51565561]
[1733646678610,1.3408,236.28,236.18,8.51565561]
[1733646678910,18.44953047,236.27,236.2,6.61565561]
[1733646679101,7.94299818,236.26,236.2,6.61565561]
[1733646679305,6.61565561,236.28,236.24,2.115]
[1733646679508,18.43543678,236.27,236.2,6.61565561]
[1733646679809,6.61565561,236.28,236.2,6.61565561]
[1733646680009,18.44268529,236.27,236.2,6.61565561]
[1733646680313,6.61565561,236.22,236.16,1.9]
[1733646680608,7.9397899,236.26,236.15,8.51565561]
[1733646680807,6.61565561,236.22,236.15,8.51565561]
[1733646681215,6.61565561,236.2,236.15,1.9]
[1733646681410,6.61565561,236.18,236.12,1.9]
[1733646681705,6.61565561,236.18,236.11,6.61565561]
[1733646681907,6.61565561,236.16,236.1,1.9]
[1733646682106,1.9,236.29,236.15,6.61565561]
[1733646682405,25.04920943,236.28,236.2,6.61565561]
[1733646682608,6.61565561,236.24,236.16,8.51565561]
[1733646682801,6.61565561,236.24,236.17,2.1156]
[1733646683004,6.61565561,236.22,236.16,8.51565561]
[1733646683202,6.61565561,236.22,236.16,6.61565561]
[1733646683512,6.61565561,236.22,236.14,8.51565561]
[1733646684613,6.61565561,236.24,236.17,2.1157]
[1733646684911,1.9,236.25,236.18,6.61565561]
[1733646685112,6.61565561,236.28,236.2,6.61565561]
[1733646685315,18.43325179,236.27,236.2,6.61565561]
[1733646685506,6.61565561,236.28,236.2,6.61565561]
[1733646685809,6.61565561,236.28,236.22,6.61565561]
[1733646686609,6.61565561,236.28,236.23,2.1151]
[1733646687010,4.475,236.29,236.23,2.1151]
[1733646687212,3.211,236.29,236.23,2.1151]
[1733646687412,3.211,236.29,236.24,2.1151]
[1733646687714,2.1141,236.35,236.26,6.61565561]
[1733646687912,1.9,236.34,236.28,6.61565561]
[1733646688218,6.61565561,236.35,236.28,6.61565561]
[1733646689212,6.61565561,236.35,236.31,2.1144]
[1733646689411,6.61565561,236.35,236.28,6.61565561]
[1733646690217,6.61565561,236.33,236.24,2.115]
[1733646690411,6.61565561,236.33,236.25,6.61565561]
[1733646690811,6.61565561,236.33,236.26,2.1148]
[1733646691214,4.5865,236.38,236.24,1.9]
[1733646691215,6.61565561,236.31,236.24,1.9]
[1733646691514,6.61565561,236.31,236.24,4.015]
[1733646691714,6.61565561,236.29,236.24,4.015]
[1733646692518,2.1144,236.32,236.24,4.015]
[1733646693320,2.1144,236.32,236.25,2.1149]
[1733646693719,12.22115681,236.33,236.24,1.9]
[1733646694022,18.40040723,236.32,236.26,2.1149]
[1733646694222,14.33545681,236.33,236.26,2.1149]
[1733646694426,7.92086792,236.32,236.27,2.1148]
[1733646694617,12.22115681,236.33,236.24,1.9]
[1733646694819,2.1145,236.31,236.24,1.9]
[1733646695325,2.1145,236.31,236.25,2.115]
[1733646695523,14.33545681,236.33,236.24,1.9]
[1733646695729,18.39984805,236.32,236.24,1.9]
[1733646696021,7.92139974,236.31,236.26,2.1149]
[1733646696234,14.33545681,236.33,236.26,2.1149]
[1733646696420,18.39818592,236.32,236.26,2.1149]
[1733646696620,2.1144,236.32,236.26,2.1149]
[1733646696821,7.92047174,236.31,236.26,2.1149]
[1733646697118,12.22115681,236.33,236.23,2.1151]
[1733646697326,18.39533204,236.32,236.23,2.1151]
[1733646697527,2.1146,236.29,236.16,10.32115681]
[1733646697826,1.9,236.28,236.2,2.1153]
[1733646698220,2.1148,236.27,236.2,2.1153]
[1733646698424,2.1148,236.27,236.17,1.9]
[1733646698725,2.1148,236.27,236.21,2.1153]
[1733646699323,1.9,236.28,236.19,10.32115681]
[1733646699923,1.9,236.28,236.24,2.115]
[1733646701227,1.9,236.28,236.23,2.1152]
[1733646701625,1.9,236.28,236.17,1.9]
[1733646702321,2.115,236.26,236.17,1.9]
[1733646703128,1.9,236.28,236.22,2.1152]
[1733646703627,1.9,236.28,236.17,1.9]